bitfinex-derivatives/quotes_BTCF0:USTF0_20250424
["timestamp","ask_amount","ask_price","bid_price","bid_amount"]
[1745505821009,0.3608,93106.0,93104.0,0.0536857]
[1745505821202,0.20074728,93110.0,93109.0,0.1073666]
[1745505821512,0.5218386,93117.0,93116.0,0.1073585]
[1745505821708,0.1073654,93111.0,93110.0,0.1610458]
[1745505821903,0.4139,93134.0,93131.0,0.0536702]
[1745505822103,0.4139,93140.0,93116.0,0.3608]
[1745505822307,0.1073435,93129.0,93128.0,0.0645]
[1745505822509,0.1073551,93119.0,93118.0,0.1721531]
[1745505822711,0.1073551,93119.0,93118.0,0.2366531]
[1745505823013,0.26084728,93128.0,93118.0,0.4901]
[1745505823014,0.0601,93128.0,93118.0,0.4901]
[1745505823209,0.1073285,93142.0,93141.0,0.1073297]
[1745505823402,0.1610107,93136.0,93135.0,0.0536671]
[1745505823913,0.0536692,93136.0,93135.0,0.0536671]
[1745505824313,0.13628828,93145.0,93132.0,0.0636]
[1745505824610,0.08208829,93145.0,93144.0,0.4681262]
[1745505824810,0.18941339,93145.0,93144.0,0.4681262]
[1745505825012,0.18941339,93145.0,93144.0,0.3608]
[1745505825207,0.44288829,93145.0,93119.0,0.3608]
[1745505825405,0.1073366,93135.0,93134.0,0.0604]
[1745505826212,0.1073574,93117.0,93116.0,0.00787845]
[1745505826402,0.1073574,93117.0,93116.0,0.1073585]
[1745505826602,0.0536769,93121.0,93111.0,0.0603]
[1745505826603,0.1610325,93121.0,93120.0,0.1073539]
[1745505827007,0.0536769,93121.0,93120.0,0.1073539]
[1745505827208,0.161016,93131.0,93130.0,0.1073412]
[1745505827415,0.1610065,93136.0,93135.0,0.107334]
[1745505827714,0.1610151,93131.0,93130.0,0.1073383]
[1745505828106,0.0624,93134.0,93133.0,0.1073389]
[1745505828307,0.1609973,93141.0,93140.0,0.1073306]
[1745505829513,0.4139,93144.0,93143.0,0.1073274]
[1745505829712,0.00271206,93147.0,93146.0,0.1073239]
[1745505829919,0.0536517,93164.0,93154.0,0.0536573]
[1745505830119,0.0536453,93175.0,93159.0,0.107309]
[1745505830416,0.1159494,93168.0,93159.0,0.468109]
[1745505830711,0.0623,93168.0,93159.0,0.12087019]
[1745505831309,0.1073046,93163.0,93159.0,0.107309]
[1745505831511,0.1145078,93160.0,93159.0,0.0623]
[1745505831715,0.1145078,93160.0,93159.0,0.169609]
[1745505832221,0.0082,93160.0,93159.0,0.169609]
[1745505832423,0.0082,93160.0,93159.0,0.530409]
[1745505833214,0.08171305,93162.0,93161.0,0.1073067]
[1745505834515,0.08371305,93162.0,93161.0,0.1073067]
[1745505834822,0.08471305,93162.0,93161.0,0.1073067]
[1745505836816,0.08471305,93162.0,93161.0,0.1701067]
[1745505841424,0.19201855,93162.0,93161.0,0.0628]
[1745505841629,0.08471305,93162.0,93161.0,0.0628]
[1745505841829,0.08471305,93162.0,93161.0,0.5309067]
[1745505842023,0.003,93162.0,93161.0,0.1701067]
[1745505842222,0.1103055,93162.0,93161.0,0.5309067]
[1745505842423,0.1735055,93162.0,93161.0,0.5309067]
[1745505842728,0.1735055,93162.0,93161.0,0.1701067]
[1745505843030,0.1609663,93159.0,93158.0,0.1073098]
[1745505843518,0.2848663,93159.0,93158.0,0.1073098]
[1745505843715,0.0536555,93158.0,93155.0,0.12801768]
[1745505843928,0.1073124,93156.0,93155.0,0.12037468]
[1745505844616,0.1073182,93151.0,93150.0,0.3608]
[1745505844821,0.1073205,93149.0,93143.0,0.0536633]
[1745505845017,0.10734,93135.0,93134.0,0.1073343]
[1745505845229,0.107335,93139.0,93138.0,0.1609959]
[1745505845621,0.2306303,93141.0,93140.0,0.1073308]
[1745505846128,0.053651,93165.0,93158.0,0.1073101]
[1745505846423,0.0536573,93155.0,93154.0,0.1073147]
[1745505846629,0.0611,93158.0,93157.0,0.1073113]
[1745505846827,0.001,93158.0,93157.0,0.1073113]
[1745505847225,0.053654,93160.0,93157.0,0.1073113]
[1745505847431,0.1073101,93158.0,93157.0,0.2883663]
[1745505847628,0.1073113,93157.0,93156.0,0.0607]
[1745505847933,0.1073205,93149.0,93148.0,0.4681211]
[1745505848832,0.2306205,93149.0,93148.0,0.4681211]
[1745505849025,0.2306205,93149.0,93142.0,0.2357282]
[1745505849026,0.1073274,93143.0,93142.0,0.2357282]
[1745505849330,0.1073297,93141.0,93140.0,0.4681308]
[1745505849532,0.1073297,93141.0,93140.0,0.3608]
[1745505849726,0.1073366,93136.0,93135.0,0.1610023]
[1745505849928,0.1073366,93135.0,93134.0,0.01309294]
[1745505850128,0.1073493,93124.0,93113.0,0.07732]
[1745505850433,0.1073493,93124.0,93117.0,0.0655]
[1745505851025,0.1073493,93124.0,93123.0,0.37419377]
[1745505851226,0.1073493,93124.0,93123.0,0.37819377]
[1745505851430,0.1073493,93124.0,93123.0,0.38119377]
[1745505852129,0.2335493,93124.0,93123.0,0.38119377]
[1745505852527,0.2335493,93124.0,93123.0,0.37819377]
[1745505852732,0.2335493,93124.0,93123.0,0.38219377]
[1745505852931,0.2335493,93124.0,93123.0,0.48954417]
[1745505853229,0.2335493,93124.0,93123.0,0.38219377]
[1745505853532,0.1073574,93117.0,93116.0,0.00107392]
[1745505853722,0.4681574,93117.0,93116.0,0.00107392]
[1745505854428,0.1285,93117.0,93116.0,0.10843242]
[1745505854824,0.2358574,93117.0,93116.0,0.00107392]
[1745505855135,0.2358574,93117.0,93116.0,0.11143242]
[1745505855325,0.2358574,93117.0,93116.0,0.00407392]
[1745505855527,0.2358574,93117.0,93116.0,0.00107392]
[1745505855725,0.1285,93117.0,93116.0,0.11143242]
[1745505855927,0.0627,93117.0,93116.0,0.47623242]
[1745505856437,0.5308574,93117.0,93116.0,0.00807392]
[1745505856826,0.1700574,93117.0,93116.0,0.00807392]
[1745505857027,0.0627,93117.0,93116.0,0.11543242]
[1745505857232,0.1700574,93117.0,93116.0,0.11543242]
[1745505857731,0.1700574,93117.0,93116.0,0.11143242]
[1745505857937,0.1700574,93117.0,93116.0,0.00407392]
[1745505858234,0.1700574,93117.0,93116.0,0.00307392]
[1745505858431,0.1700574,93117.0,93116.0,0.11043242]
[1745505858432,0.0637,93117.0,93116.0,0.11043242]
[1745505858623,0.0637,93117.0,93116.0,0.47123242]
[1745505858830,0.1710574,93117.0,93116.0,0.47123242]
[1745505859536,0.0637,93117.0,93116.0,0.47123242]
[1745505860037,0.0637,93117.0,93116.0,0.11043242]
[1745505860237,0.0637,93117.0,93116.0,0.10843242]
[1745505860535,0.0637,93117.0,93116.0,0.11043242]
[1745505860936,0.1700574,93117.0,93116.0,0.11043242]
[1745505861137,0.0627,93117.0,93116.0,0.11043242]
[1745505862540,0.0627,93117.0,93116.0,0.11143242]
[1745505862739,0.0627,93117.0,93116.0,0.11243242]
[1745505863444,0.1700574,93117.0,93116.0,0.11243242]
[1745505863639,0.0627,93117.0,93116.0,0.11243242]
[1745505863833,0.0627,93117.0,93116.0,0.47323242]
[1745505864137,0.0627,93117.0,93116.0,0.47423242]
[1745505864531,0.3608,93125.0,93124.0,0.1073493]
[1745505864943,0.0607,93138.0,93137.0,0.1073343]
[1745505865135,0.4139,93142.0,93141.0,0.1073297]
[1745505865344,0.1680274,93143.0,93142.0,0.1073285]
[1745505865549,0.0536696,93133.0,93119.0,0.3608]
[1745505865851,0.1073389,93135.0,93134.0,0.1610034]
[1745505866644,0.1073351,93137.0,93136.0,0.1073355]
[1745505866842,0.1727351,93137.0,93136.0,0.1073355]
[1745505867047,0.1073412,93131.0,93130.0,0.053671]
[1745505867454,0.0536719,93129.0,93125.0,0.0602]
[1745505867643,0.107347,93126.0,93125.0,0.1675476]
[1745505867844,0.0654,93128.0,93127.0,0.1073458]
[1745505868041,0.003,93137.0,93127.0,0.1073458]
[1745505868248,0.1073365,93136.0,93135.0,0.1073355]
[1745505868849,0.1073401,93132.0,93131.0,0.4681402]
[1745505869051,0.1073504,93123.0,93122.0,0.1699516]
[1745505869647,0.3608,93141.0,93122.0,0.0626]
[1745505869854,0.1073401,93133.0,93132.0,0.1610066]
[1745505870352,0.1073574,93119.0,93118.0,0.107352]
[1745505870554,0.1073574,93118.0,93117.0,0.1073563]
[1745505870757,0.1073574,93117.0,93116.0,0.00107392]
[1745505871347,0.2298574,93117.0,93116.0,0.00107392]
[1745505871952,0.2298574,93117.0,93116.0,0.00307392]
[1745505872657,0.5906574,93117.0,93116.0,0.00307392]
[1745505872850,0.1672574,93117.0,93116.0,0.11043242]
[1745505873051,0.1073534,93123.0,93122.0,0.1073493]
[1745505873258,0.1610291,93123.0,93122.0,0.1610245]
[1745505874059,0.1073562,93118.0,93117.0,0.1685571]
[1745505874660,0.3608,93129.0,93117.0,0.1685571]
[1745505874661,0.1083515,93123.0,93122.0,0.1073516]
[1745505875054,0.1073516,93122.0,93121.0,0.1685516]
[1745505875363,0.1723516,93122.0,93121.0,0.1685516]
[1745505875953,0.1723516,93122.0,93121.0,0.0612]
[1745505876153,0.1723516,93122.0,93121.0,0.1695527]
[1745505876350,0.5331516,93122.0,93121.0,0.1695527]
[1745505877564,0.1723516,93122.0,93121.0,0.1695527]
[1745505877755,0.1733516,93122.0,93121.0,0.1695527]
[1745505878364,0.1723516,93122.0,93121.0,0.1695527]
[1745505878859,0.1723516,93122.0,93121.0,0.0622]
[1745505879055,0.1723516,93122.0,93121.0,0.1695527]
[1745505879964,0.1723516,93122.0,93121.0,0.1685527]
[1745505880262,0.1723516,93122.0,93121.0,0.1695527]
[1745505881364,0.1088472,93143.0,93134.0,0.1073378]
[1745505881658,0.0632,93142.0,93134.0,0.1073378]
[1745505882063,0.0632,93142.0,93134.0,0.2322378]
[1745505882251,0.0632,93142.0,93141.0,0.1073297]
[1745505882457,0.1705285,93142.0,93141.0,0.1073297]
[1745505883058,0.1705285,93142.0,93141.0,0.2951297]
[1745505883964,0.1705285,93142.0,93141.0,0.2981297]
[1745505885064,0.0632,93142.0,93141.0,0.6589297]
[1745505885467,0.1088472,93143.0,93142.0,0.1073285]
[1745505885654,0.1088472,93143.0,93142.0,0.2290285]
[1745505886459,0.08190716,93150.0,93149.0,0.1073205]
[1745505886954,0.08190716,93150.0,93149.0,0.4681205]
[1745505887762,0.08290716,93150.0,93149.0,0.4681205]
[1745505889560,0.001,93150.0,93149.0,0.4681205]
[1745505890258,0.001,93150.0,93149.0,0.47613165]
[1745505890460,0.1083193,93150.0,93149.0,0.47613165]
[1745505890659,0.001,93150.0,93149.0,0.4681205]
[1745505890960,0.1083193,93150.0,93149.0,0.4681205]
[1745505892564,0.001,93150.0,93149.0,0.4681205]
[1745505894266,0.1088472,93175.0,93166.0,0.1072997]
[1745505894465,0.18920576,93168.0,93167.0,0.1707997]
[1745505894869,0.08190716,93168.0,93167.0,0.5315997]
[1745505895361,0.1088472,93175.0,93174.0,0.1072917]
[1745505895564,0.1088472,93175.0,93174.0,0.4680917]
[1745505897066,0.1088472,93175.0,93174.0,0.5272917]
[1745505897471,0.1108472,93175.0,93174.0,0.5272917]
[1745505898682,0.002,93175.0,93174.0,0.5272917]
[1745505899274,0.1092905,93175.0,93174.0,0.5272917]
[1745505899475,0.002,93175.0,93174.0,0.1664917]
[1745505901473,0.0536321,93198.0,93193.0,0.1609001]
[1745505901677,0.1072729,93194.0,93193.0,0.1609001]
[1745505901875,0.1088472,93202.0,93201.0,0.1072606]
[1745505902783,0.1088472,93202.0,93193.0,0.06180675]
[1745505902784,0.2161066,93202.0,93197.0,0.0536325]
[1745505902978,0.1072776,93189.0,93188.0,0.1072715]
[1745505903178,0.1072695,93195.0,93194.0,0.1072644]
[1745505904177,0.2196695,93195.0,93194.0,0.1072644]
[1745505904375,0.2196695,93195.0,93194.0,0.11785583]
[1745505905779,0.2206695,93195.0,93194.0,0.11786013]
[1745505906475,0.2206695,93195.0,93194.0,0.17236013]
[1745505906476,0.0616,93195.0,93194.0,0.17236013]
[1745505906679,0.0052,93208.0,93194.0,0.17236013]
[1745505906680,0.0052,93208.0,93195.0,0.0536335]
[1745505906982,0.0052,93208.0,93206.0,0.4680548]
[1745505907170,0.1088472,93223.0,93206.0,0.3608]
[1745505907371,0.1088472,93223.0,93222.0,0.1072364]
[1745505907790,0.1088472,93223.0,93222.0,0.2727364]
[1745505908283,0.0536148,93228.0,93225.0,0.053616]
[1745505908284,0.0536153,93227.0,93225.0,0.053616]
[1745505908484,0.0536153,93227.0,93222.0,0.1655]
[1745505908485,0.1608471,93227.0,93226.0,0.1138]
[1745505908678,0.1608471,93227.0,93226.0,0.23179959]
[1745505909174,0.0536153,93227.0,93226.0,0.23179959]
[1745505909575,0.0546153,93227.0,93226.0,0.23179959]
[1745505909973,0.469064,93227.0,93206.0,0.43804]
[1745505910284,0.1068537,93210.0,93209.0,0.0536254]
[1745505910583,0.1068537,93210.0,93209.0,0.1098254]
[1745505910772,0.1068537,93210.0,93209.0,0.1691254]
[1745505911471,0.1068537,93210.0,93209.0,0.17986991]
[1745505912585,0.1072687,93194.0,93193.0,0.11516596]
[1745505912774,0.1072687,93194.0,93193.0,0.1617676]
[1745505912970,0.1072673,93196.0,93195.0,0.1072664]
[1745505913375,0.1072673,93196.0,93195.0,0.1649664]
[1745505913583,0.1072687,93194.0,93193.0,0.1617698]
[1745505913879,0.1072687,93194.0,93193.0,0.1647698]
[1745505914279,0.1072687,93194.0,93193.0,0.17226144]
[1745505914678,0.0597,93194.0,93193.0,0.17226144]
[1745505914880,0.5277687,93194.0,93193.0,0.003]
[1745505915081,0.6350727,93194.0,93193.0,0.003]
[1745505915291,0.5277687,93194.0,93193.0,0.003]
[1745505915490,0.1072859,93179.0,93178.0,0.0558]
[1745505916185,0.1072859,93179.0,93178.0,0.06623946]
[1745505917882,0.1072859,93179.0,93178.0,0.17952656]
[1745505918187,0.1072859,93179.0,93178.0,0.006]
[1745505919282,0.107294,93172.0,93159.0,0.11267564]
[1745505919588,0.1073055,93162.0,93161.0,0.01059815]
[1745505919778,0.1073055,93162.0,93159.0,0.00536714]
[1745505919779,0.1073078,93160.0,93159.0,0.00536714]
[1745505919978,0.1073228,93147.0,93146.0,0.00107358]
[1745505920179,0.4681228,93147.0,93146.0,0.00107358]
[1745505920389,0.1073228,93147.0,93146.0,0.10839748]
[1745505920582,0.3608,93176.0,93146.0,0.00107358]
[1745505920784,0.1073147,93156.0,93155.0,0.1609647]
[1745505921392,0.1609717,93156.0,93155.0,0.1649556]
[1745505921600,0.1609717,93156.0,93155.0,0.0552]
[1745505921978,0.1609717,93156.0,93155.0,0.1625136]
[1745505922186,0.1073205,93149.0,93148.0,0.0588]
[1745505922979,0.1073205,93149.0,93148.0,0.1661216]
[1745505923187,0.1073205,93149.0,93148.0,0.0588]
[1745505923386,0.1073228,93147.0,93146.0,0.00107358]
[1745505923883,0.1073355,93136.0,93135.0,0.21627886]
[1745505924079,0.1073355,93136.0,93131.0,0.0552]
[1745505924080,0.1073401,93132.0,93131.0,0.1625377]
[1745505924282,0.1073401,93132.0,93131.0,0.0552]
[1745505925280,0.0536693,93134.0,93126.0,0.00161054]
[1745505925486,0.4681458,93127.0,93126.0,0.00161054]
[1745505925887,0.4681458,93127.0,93126.0,0.10895754]
[1745505926381,0.4681458,93127.0,93126.0,0.00161054]
[1745505926595,0.4681458,93127.0,93126.0,0.00961054]
[1745505926983,0.6299258,93127.0,93126.0,0.00961054]
[1745505927184,0.6299258,93127.0,93116.0,0.00107392]
[1745505927185,0.1073574,93117.0,93116.0,0.00107392]
[1745505927387,0.4681574,93117.0,93116.0,0.00107392]
[1745505927987,0.5855574,93117.0,93116.0,0.00107392]
[1745505928390,0.5855574,93117.0,93116.0,0.00607392]
[1745505928990,0.5855574,93117.0,93116.0,0.00107392]
[1745505929197,0.1073631,93112.0,93106.0,0.1073691]
[1745505929583,0.1073631,93112.0,93107.0,0.1073687]
[1745505929789,0.1073631,93112.0,93106.0,0.1073695]
[1745505929996,0.1073631,93112.0,93103.0,0.0569]
[1745505930190,0.1073758,93101.0,93099.0,0.0541]
[1745505930393,0.0536906,93097.0,93094.0,0.0582]
[1745505930588,0.0536906,93097.0,93094.0,0.1655825]
[1745505930589,0.1073827,93095.0,93094.0,0.1655825]
[1745505931396,0.1608827,93095.0,93094.0,0.1655825]
[1745505931896,0.1608827,93095.0,93094.0,0.1715825]
[1745505932396,0.1608827,93095.0,93094.0,0.1705825]
[1745505932598,0.1608827,93095.0,93094.0,0.1765825]
[1745505932898,0.1608827,93095.0,93094.0,0.1715825]
[1745505933098,0.1608827,93095.0,93094.0,0.1765825]
[1745505933496,0.1608827,93095.0,93094.0,0.18729688]
[1745505934901,0.1073827,93095.0,93094.0,0.18729688]
[1745505935392,0.0536864,93105.0,93104.0,0.1610536]
[1745505935589,0.053684,93108.0,93107.0,0.1073689]
[1745505935792,0.0536834,93111.0,93108.0,0.1610512]
[1745505935995,0.414479,93117.0,93105.0,0.11]
[1745505935996,0.3608,93117.0,93105.0,0.0564]
[1745505936191,0.3608,93117.0,93116.0,0.1073585]
[1745505936192,0.4681574,93117.0,93116.0,0.1073585]
[1745505936693,0.4681574,93117.0,93108.0,0.0536833]
[1745505936694,0.1073666,93110.0,93109.0,0.1073656]
[1745505938089,0.1073666,93110.0,93109.0,0.002]
[1745505938789,0.1073827,93095.0,93094.0,0.1073827]
[1745505939394,0.0585,93100.0,93087.0,0.1103956]
[1745505939595,0.1073908,93088.0,93087.0,0.12084124]
[1745505939900,0.0536885,93100.0,93099.0,0.1073781]
[1745505940390,0.1073804,93098.0,93097.0,0.1073795]
[1745505940793,0.0536895,93099.0,93098.0,0.1073793]
[1745505941495,0.3608,93107.0,93106.0,0.10737]
[1745505941900,0.1073527,93121.0,93120.0,0.1073539]
[1745505942196,0.0536757,93123.0,93109.0,0.0536833]
[1745505942396,0.1073654,93111.0,93110.0,0.1073647]
[1745505942597,0.1073563,93119.0,93118.0,0.1610319]
[1745505943094,0.1073597,93117.0,93116.0,0.1073581]
[1745505943301,0.0536781,93118.0,93110.0,0.1610468]
[1745505943493,0.1073624,93113.0,93112.0,0.1610419]
[1745505943893,0.1073643,93111.0,93110.0,0.1610472]
[1745505944288,0.0538,93112.0,93104.0,0.0538]
[1745505944289,0.1073712,93105.0,93104.0,0.0538]
[1745505944491,0.1073712,93105.0,93104.0,0.1611723]
[1745505944694,0.0538,93110.0,93109.0,0.1073666]
[1745505944695,0.1611677,93110.0,93109.0,0.1073666]
[1745505944896,0.2148508,93110.0,93109.0,0.1073666]
[1745505945202,0.1073677,93108.0,93107.0,0.1610519]
[1745505945995,0.1073677,93108.0,93104.0,0.1094861]
[1745505945996,0.1073712,93105.0,93104.0,0.0558]
[1745505946196,0.4681712,93105.0,93104.0,0.0538]
[1745505946399,0.1610856,93090.0,93089.0,0.161081]
[1745505946597,0.1073885,93090.0,93089.0,0.0537]
[1745505947097,0.107392,93087.0,93086.0,0.00107427]
[1745505947400,0.1611046,93079.0,93078.0,0.1073986]
[1745505947601,0.5219046,93079.0,93078.0,0.1073986]
[1745505948301,0.1074047,93076.0,93075.0,0.0537]
[1745505948501,0.1074185,93064.0,93061.0,0.21530397]
[1745505948702,0.0537086,93066.0,93065.0,0.1074173]
[1745505949296,0.0537086,93066.0,93065.0,0.11794817]
[1745505949499,0.0537086,93066.0,93063.0,0.06069372]
[1745505949500,0.1074185,93064.0,93063.0,0.00698442]
[1745505949800,0.1074185,93064.0,93063.0,0.11440412]
[1745505950002,0.1074185,93064.0,93063.0,0.01398442]
[1745505950304,0.1638185,93064.0,93063.0,0.01398442]
[1745505951002,0.1638185,93064.0,93063.0,0.02037268]
[1745505952099,0.1628185,93064.0,93063.0,0.01337268]
[1745505952294,0.1628185,93064.0,93063.0,0.01937268]
[1745505952700,0.1628185,93064.0,93063.0,0.01237268]
[1745505952896,0.1628185,93064.0,93063.0,0.01837268]
[1745505952897,0.2702705,93064.0,93063.0,0.01837268]
[1745505953096,0.1074266,93057.0,93056.0,0.01180763]
[1745505953306,0.4682266,93057.0,93056.0,0.11923533]
[1745505954000,0.3608,93057.0,93056.0,0.11923533]
[1745505954504,0.4682266,93057.0,93056.0,0.11923533]
[1745505954807,0.4682266,93057.0,93056.0,0.12523533]
[1745505954808,0.4692266,93057.0,93056.0,0.12523533]
[1745505955503,0.4692266,93057.0,93056.0,0.01780763]
[1745505955708,0.4692266,93057.0,93056.0,0.02380763]
[1745505956104,0.5843266,93057.0,93056.0,0.02380763]
[1745505956803,0.5843266,93057.0,93056.0,0.01780763]
[1745505957000,0.5265266,93057.0,93056.0,0.12523533]
[1745505957296,0.5265266,93057.0,93056.0,0.00707462]
[1745505957705,0.5255266,93057.0,93056.0,0.00107462]
[1745505957902,0.1074497,93037.0,93036.0,0.0589]
[1745505958100,0.4682497,93037.0,93036.0,0.0589]
[1745505958299,0.1074497,93037.0,93036.0,0.1663508]
[1745505958808,0.1074497,93037.0,93036.0,0.17720231]
[1745505959504,0.1094497,93037.0,93036.0,0.19020231]
[1745505959704,0.1114497,93037.0,93036.0,0.21020231]
[1745505960410,0.1094497,93037.0,93036.0,0.09090328]
[1745505960595,0.1094497,93037.0,93036.0,0.09690328]
[1745505961508,0.1084497,93037.0,93036.0,0.18820231]
[1745505961704,0.1084497,93037.0,93036.0,0.0699]
[1745505962304,0.4692497,93037.0,93036.0,0.011]
[1745505963803,0.3618,93037.0,93036.0,0.011]
[1745505964004,0.001,93037.0,93036.0,0.1184508]
[1745505964207,0.001,93037.0,93036.0,0.4792508]
[1745505964411,0.1074361,93049.0,93048.0,0.107437]
[1745505965308,0.1590361,93049.0,93048.0,0.107437]
[1745505965501,0.1590361,93049.0,93048.0,0.108437]
[1745505967007,0.1590361,93049.0,93048.0,0.161037]
[1745505967412,0.3608,93054.0,93053.0,0.1074312]
[1745505967613,0.10743,93054.0,93053.0,0.2148602]
[1745505968000,0.1033,93059.0,93058.0,0.1074254]
[1745505968207,0.1074243,93059.0,93058.0,0.1611376]
[1745505968516,0.1074243,93059.0,93058.0,0.0537122]
[1745505968816,0.1074243,93059.0,93058.0,0.0546]
[1745505969115,0.2092243,93059.0,93058.0,0.0546]
[1745505969305,0.2122243,93059.0,93058.0,0.17258034]
[1745505969507,0.2122243,93059.0,93058.0,0.06515494]
[1745505969711,0.2142243,93059.0,93058.0,0.06515494]
[1745505970008,0.2142243,93059.0,93058.0,0.17258034]
[1745505971519,0.1124243,93059.0,93058.0,0.17258034]
[1745505972014,0.005,93059.0,93058.0,0.17258034]
[1745505972411,0.1084047,93072.0,93058.0,0.17258034]
[1745505972412,0.0536984,93083.0,93070.0,0.1074116]
[1745505972616,0.4682104,93071.0,93070.0,0.1074116]
[1745505973216,0.1074127,93069.0,93068.0,0.1082]
[1745505973418,0.1074127,93069.0,93068.0,0.2156139]
[1745505973808,0.1074127,93069.0,93068.0,0.1082]
[1745505974009,0.2130127,93069.0,93068.0,0.0535]
[1745505974415,0.1074231,93060.0,93059.0,0.0547]
[1745505974614,0.1074231,93060.0,93059.0,0.1621243]
[1745505975918,0.001,93060.0,93059.0,0.2165243]
[1745505976414,0.002,93060.0,93059.0,0.2165243]
[1745505976622,0.1094231,93060.0,93059.0,0.2165243]
[1745505977119,0.002,93060.0,93059.0,0.2165243]
[1745505978627,0.1094231,93060.0,93059.0,0.2165243]
[1745505979436,0.1094231,93060.0,93059.0,0.1091]
[1745505979620,0.1094231,93060.0,93059.0,0.1618243]
[1745505980627,0.1646231,93060.0,93059.0,0.0544]
[1745505981330,0.0572,93060.0,93048.0,0.1074362]
[1745505981624,0.1074416,93044.0,93043.0,0.0526]
[1745505981819,0.1074416,93044.0,93043.0,0.2134427]
[1745505982521,0.1074439,93042.0,93041.0,0.21627886]
[1745505982729,0.1074439,93042.0,93041.0,0.32372396]
[1745505983127,0.1074439,93042.0,93041.0,0.33457252]
[1745505983327,0.1610439,93042.0,93041.0,0.32372396]
[1745505983820,0.1610439,93042.0,93041.0,0.37522396]
[1745505984321,0.1610439,93042.0,93041.0,0.3857632]
[1745505984629,0.1610439,93042.0,93041.0,0.1619451]
[1745505984829,0.1610439,93042.0,93041.0,0.1649451]
[1745505991727,0.3608,93048.0,93047.0,0.1074381]
[1745505991925,0.1611568,93050.0,93049.0,0.1611508]
[1745505992121,0.107437,93048.0,93047.0,0.2146374]
[1745505992733,0.107437,93048.0,93047.0,0.2156374]
[1745505993729,0.107437,93048.0,93047.0,0.2166374]
[1745505994017,0.107437,93048.0,93047.0,0.1092]
[1745505994216,0.107437,93048.0,93047.0,0.2166381]
[1745505994422,0.107437,93048.0,93047.0,0.002]
[1745505994629,0.161837,93048.0,93047.0,0.002]
[1745505995634,0.213237,93048.0,93047.0,0.002]
[1745505996233,0.1074497,93037.0,93036.0,0.1074497]
[1745505996643,0.20055137,93046.0,93035.0,0.0537254]
[1745505996644,0.0537192,93047.0,93045.0,0.1074393]
[1745505996827,0.1074399,93046.0,93045.0,0.1074393]
[1745505997226,0.1615399,93046.0,93045.0,0.1074393]
[1745505997730,0.1611652,93044.0,93043.0,0.1074422]
[1745505998135,0.2152652,93044.0,93043.0,0.1074422]
[1745505998324,0.2697652,93044.0,93043.0,0.1074422]
[1745505998739,0.0537213,93044.0,93043.0,0.1074422]
[1745505998929,0.1074406,93045.0,93044.0,0.1611595]
[1745505999239,0.1074406,93045.0,93044.0,0.2646595]
[1745506000139,0.1074406,93045.0,93044.0,0.1572202]
[1745506000833,0.1074406,93045.0,93044.0,0.1582202]
[1745506001039,0.1579406,93045.0,93044.0,0.1602202]
[1745506002938,0.1579406,93045.0,93044.0,0.1065]
[1745506003239,0.1579406,93045.0,93044.0,0.2139416]
[1745506003642,0.1074406,93045.0,93044.0,0.2139416]
[1745506005642,0.1316,93059.0,93044.0,0.2139416]
[1745506005643,0.1088472,93062.0,93061.0,0.107422]
[1745506006137,0.1088472,93062.0,93061.0,0.468222]
[1745506006644,0.1088472,93062.0,93061.0,0.575022]
[1745506006942,0.1118472,93062.0,93061.0,0.575022]
[1745506007643,0.1148472,93062.0,93061.0,0.575022]
[1745506009135,0.006,93062.0,93061.0,0.575022]
[1745506010633,0.006,93062.0,93061.0,0.682478]
[1745506010843,0.00161242,93088.0,93074.0,0.0537032]
[1745506011038,0.00161242,93088.0,93086.0,0.4681931]
[1745506011242,0.00161242,93088.0,93086.0,0.48165211]
[1745506011938,0.00161242,93088.0,93086.0,0.58185211]
[1745506012139,0.0031,93087.0,93086.0,0.58185211]
[1745506012339,0.0041,93087.0,93086.0,0.58990053]
[1745506012838,0.0031,93087.0,93086.0,0.58990053]
[1745506013039,0.0021,93087.0,93086.0,0.58990053]
[1745506013239,0.109492,93087.0,93086.0,0.12170743]
[1745506013553,0.1074047,93076.0,93075.0,0.1584058]
[1745506013847,0.0536981,93084.0,93083.0,0.1073966]
[1745506014051,0.109492,93087.0,93086.0,0.1073931]
[1745506014439,0.0021,93087.0,93086.0,0.1073931]
[1745506014841,0.0011,93087.0,93086.0,0.1584931]
[1745506015144,0.108492,93087.0,93086.0,0.0511]
[1745506015540,0.208692,93087.0,93086.0,0.0521]
[1745506016037,0.208692,93087.0,93086.0,0.0531]
[1745506016444,0.208692,93087.0,93086.0,0.1604931]
[1745506017249,0.108492,93087.0,93086.0,0.1604931]
[1745506017642,0.215392,93087.0,93086.0,0.1584931]
[1745506018046,0.218392,93087.0,93086.0,0.1584931]
[1745506018650,0.1611046,93079.0,93076.0,0.0541]
[1745506018852,0.1044,93078.0,93077.0,0.1074035]
[1745506019055,0.2118035,93078.0,93077.0,0.1074035]
[1745506019346,0.1074116,93070.0,93069.0,0.00813324]
[1745506019554,0.1074116,93070.0,93069.0,0.1074127]
[1745506020438,0.1074116,93070.0,93069.0,0.2165127]
[1745506021553,0.1575116,93070.0,93069.0,0.2185127]
[1745506021846,0.2119116,93070.0,93069.0,0.2185127]
[1745506022053,0.1045,93070.0,93069.0,0.23071182]
[1745506022353,0.161102,93082.0,93081.0,0.0536986]
[1745506022652,0.2147917,93085.0,93084.0,0.1073954]
[1745506022853,0.0011,93087.0,93086.0,0.1073931]
[1745506024553,0.108492,93087.0,93086.0,0.1073931]
[1745506025455,0.111492,93087.0,93086.0,0.1073931]
[1745506025659,0.113492,93087.0,93086.0,0.1073931]
[1745506026255,0.0031,93087.0,93086.0,0.1073931]
[1745506026457,0.0041,93087.0,93086.0,0.1073931]
[1745506026662,0.111492,93087.0,93086.0,0.1073931]
[1745506026851,0.164392,93087.0,93086.0,0.1073931]
[1745506027047,0.163392,93087.0,93086.0,0.1073931]
[1745506027660,0.162392,93087.0,93086.0,0.1073931]
[1745506027951,0.161392,93087.0,93086.0,0.1073931]
[1745506028157,0.2148012,93081.0,93080.0,0.0536995]
[1745506028858,0.1074,93081.0,93080.0,0.0536995]
[1745506029155,0.0536983,93083.0,93082.0,0.1073977]
[1745506030252,0.1053983,93083.0,93082.0,0.1073977]
[1745506030553,0.0522,93084.0,93080.0,0.1073988]
[1745506030758,0.4692931,93087.0,93086.0,0.1073931]
[1745506031755,0.3619,93087.0,93086.0,0.1073931]
[1745506032059,0.471292,93087.0,93086.0,0.1073931]
[1745506033763,0.471292,93087.0,93086.0,0.1603931]
[1745506033965,0.471292,93087.0,93086.0,0.053]
[1745506034263,0.1073931,93086.0,93085.0,0.1596943]
[1745506034452,0.2093931,93086.0,93085.0,0.0523]
[1745506035157,0.2093931,93086.0,93084.0,0.1073954]